fUSD/lending_fUSD_20250103
["ID","MTS","AMOUNT","RATE_DAILY","PERIOD"]
[347595245,1735937437415,-500.0,0.00011894,2]
[347595246,1735937437424,-500.0,0.00011894,2]
[347595248,1735937437434,-500.0,0.00011894,2]
[347595249,1735937437443,-500.0,0.00011894,2]
[347595250,1735937437453,-500.0,0.00011894,2]
[347595251,1735937437462,-525.72,0.00011894,2]
[347595252,1735937437471,-500.0,0.00011894,2]
[347595253,1735937437482,-500.0,0.00011894,2]
[347595254,1735937437492,-500.0,0.00011894,2]
[347595255,1735937437502,-500.0,0.00011894,2]
[347595256,1735937437513,-500.0,0.00011894,2]
[347595257,1735937437524,-500.0,0.00011894,2]
[347595258,1735937437533,-500.0,0.00011894,2]
[347595259,1735937437543,-706.46,0.00011894,2]
[347595260,1735937437553,-500.0,0.00011894,2]
[347595261,1735937437562,-500.0,0.00011894,2]
[347595262,1735937437572,-500.0,0.00011894,2]
[347595263,1735937437582,-500.0,0.00011894,2]
[347595264,1735937437591,-500.0,0.00011894,2]
[347595265,1735937437601,-500.0,0.00011894,2]
[347595266,1735937437611,-500.0,0.00011894,2]
[347595267,1735937437621,-500.0,0.00011894,2]
[347595268,1735937437631,-500.0,0.00011894,2]
[347595269,1735937437640,-500.0,0.00011894,2]
[347595270,1735937437650,-500.0,0.00011894,2]
[347595271,1735937437659,-500.0,0.00011894,2]
[347595272,1735937437669,-500.0,0.00011894,2]
[347595273,1735937437679,-606.55,0.00011894,2]
[347595274,1735937437689,-500.0,0.00011894,2]
[347595275,1735937437698,-500.0,0.00011894,2]
[347595276,1735937437708,-500.0,0.00011894,2]
[347595277,1735937437717,-500.0,0.00011894,2]
[347595278,1735937437726,-500.0,0.00011894,2]
[347595279,1735937437736,-550.74,0.00011894,2]
[347595280,1735937437745,-500.0,0.00011894,2]
[347595281,1735937437754,-500.0,0.00011894,2]
[347595282,1735937437764,-566.27,0.00011894,2]
[347595283,1735937437774,-500.0,0.00011894,2]
[347595284,1735937437783,-500.0,0.00011894,2]
[347595285,1735937437792,-500.0,0.00011894,2]
[347595286,1735937437801,-500.0,0.00011894,2]
[347595287,1735937437811,-500.0,0.00011894,2]
[347595288,1735937437824,-500.0,0.00011894,2]
[347595289,1735937437833,-500.0,0.00011894,2]
[347595290,1735937437842,-543.7685035,0.00011894,2]
[347595291,1735937437851,-500.0,0.00011894,2]
[347595292,1735937437860,-500.0,0.00011894,2]
[347595293,1735937437870,-500.0,0.00011894,2]
[347595295,1735937437878,-500.0,0.00011894,2]
[347595296,1735937437888,-500.0,0.00011894,2]
[347595298,1735937437898,-500.0,0.00011894,2]
[347595301,1735937437907,-500.0,0.00011894,2]
[347595302,1735937437917,-500.0,0.00011894,2]
[347595303,1735937437926,-500.0,0.00011894,2]
[347595305,1735937437936,-500.0,0.00011894,2]
[347595306,1735937437945,-500.0,0.00011894,2]
[347595308,1735937437954,-500.0,0.00011894,2]
[347595310,1735937437963,-500.0,0.00011894,2]
[347595312,1735937437972,-508.12,0.00011894,2]
[347595314,1735937437982,-509.05,0.00011894,2]
[347595316,1735937437991,-500.0,0.00011894,2]
[347595318,1735937438000,-500.0,0.00011894,2]
[347595320,1735937438009,-500.0,0.00011894,2]
[347595322,1735937438019,-500.0,0.00011894,2]
[347595324,1735937438029,-500.0,0.00011894,2]
[347595326,1735937438039,-500.0,0.00011894,2]
[347595328,1735937438049,-500.0,0.00011894,2]
[347595330,1735937438059,-500.0,0.00011894,2]
[347595332,1735937438068,-500.0,0.00011894,2]
[347595334,1735937438077,-500.0,0.00011894,2]
[347595336,1735937438086,-513.51,0.00011894,2]
[347595338,1735937438095,-500.0,0.00011894,2]
[347595340,1735937438105,-500.0,0.00011894,2]
[347595342,1735937438114,-500.0,0.00011894,2]
[347595344,1735937438123,-552.94,0.00011894,2]
[347595346,1735937438132,-500.0,0.00011894,2]
[347595348,1735937438141,-500.0,0.00011894,2]
[347595350,1735937438151,-500.0,0.00011894,2]
[347595352,1735937438161,-500.0,0.00011894,2]
[347595353,1735937438170,-500.0,0.00011894,2]
[347595355,1735937438179,-500.0,0.00011894,2]
[347595357,1735937438189,-500.0,0.00011894,2]
[347595359,1735937438198,-500.0,0.00011894,2]
[347595361,1735937438207,-500.0,0.00011894,2]
[347595362,1735937438218,-500.0,0.00011894,2]
[347595364,1735937438228,-500.0,0.00011894,2]
[347595366,1735937438237,-500.0,0.00011894,2]
[347595368,1735937438246,-500.0,0.00011894,2]
[347595370,1735937438255,-500.0,0.00011894,2]
[347595372,1735937438265,-500.0,0.00011894,2]
[347595374,1735937438274,-500.0,0.00011894,2]
[347595376,1735937438284,-500.0,0.00011894,2]
[347595378,1735937438294,-500.0,0.00011894,2]
[347595380,1735937438303,-500.0,0.00011894,2]
[347595382,1735937438312,-500.0,0.00011894,2]
[347595384,1735937438321,-500.0,0.00011894,2]
[347595386,1735937438329,-500.0,0.00011894,2]
[347595388,1735937438339,-500.0,0.00011894,2]
[347595390,1735937438347,-500.0,0.00011894,2]
[347595392,1735937438357,-500.0,0.00011894,2]
[347595394,1735937438366,-682.41,0.00011894,2]
[347595396,1735937438375,-500.0,0.00011894,2]
[347595398,1735937438384,-500.0,0.00011894,2]
[347595400,1735937438393,-500.0,0.00011894,2]
[347595402,1735937438401,-500.0,0.00011894,2]
[347595404,1735937438411,-500.0,0.00011894,2]
[347595406,1735937438420,-500.0,0.00011894,2]
[347595408,1735937438429,-500.0,0.00011894,2]
[347595410,1735937438438,-500.0,0.00011894,2]
[347595412,1735937438447,-500.0,0.00011894,2]
[347595414,1735937438456,-500.0,0.00011894,2]
[347595416,1735937438465,-265.77707939,0.00011894,2]
[347595418,1735937438474,-500.0,0.00011894,2]
[347595419,1735937438483,-500.0,0.00011894,2]
[347595420,1735937438492,-500.0,0.00011894,2]
[347595421,1735937438502,-500.0,0.00011894,2]
[347595422,1735937438511,-500.0,0.00011894,2]
[347595423,1735937438520,-500.0,0.00011894,2]
[347595424,1735937438529,-500.0,0.00011894,2]
[347595425,1735937438538,-500.0,0.00011894,2]
[347595426,1735937438547,-500.0,0.00011894,2]
[347595427,1735937438557,-500.0,0.00011894,2]
[347595428,1735937438566,-500.0,0.00011894,2]
[347595429,1735937438575,-500.0,0.00011894,2]
[347595430,1735937438585,-598.15,0.00011894,2]
[347595431,1735937438594,-500.0,0.00011894,2]
[347595432,1735937438603,-500.0,0.00011894,2]
[347595433,1735937438612,-500.0,0.00011894,2]
[347595434,1735937438622,-500.0,0.00011894,2]
[347595435,1735937438631,-500.0,0.00011894,2]
[347595436,1735937438640,-500.0,0.00011894,2]
[347595437,1735937438649,-500.0,0.00011894,2]
[347595438,1735937438659,-500.0,0.00011894,2]
[347595439,1735937438668,-500.0,0.00011894,2]
[347595440,1735937438678,-500.0,0.00011894,2]
[347595441,1735937438688,-500.0,0.00011894,2]
[347595442,1735937438697,-500.0,0.00011894,2]
[347595443,1735937438706,-500.0,0.00011894,2]
[347595444,1735937438716,-500.0,0.00011894,2]
[347595445,1735937438726,-500.0,0.00011894,2]
[347595446,1735937438735,-500.0,0.00011894,2]
[347595447,1735937438745,-500.0,0.00011894,2]
[347595448,1735937438754,-500.0,0.00011894,2]
[347595449,1735937438767,-500.0,0.00011894,2]
[347595450,1735937438776,-500.0,0.00011894,2]
[347595451,1735937438787,-500.0,0.00011894,2]
[347595452,1735937438797,-500.0,0.00011894,2]
[347595453,1735937438806,-500.0,0.00011894,2]
[347595454,1735937438818,-500.0,0.00011894,2]
[347595455,1735937438827,-500.0,0.00011894,2]
[347595456,1735937438836,-500.0,0.00011894,2]
[347595457,1735937438845,-182.84734115,0.00011894,2]
[347595458,1735937438855,-500.0,0.00011894,2]
[347595459,1735937438865,-500.0,0.00011894,2]
[347595460,1735937438875,-500.0,0.00011894,2]
[347595461,1735937438884,-500.0,0.00011894,2]
[347595462,1735937438895,-500.0,0.00011894,2]
[347595463,1735937438905,-500.0,0.00011894,2]
[347595464,1735937438914,-500.0,0.00011894,2]
[347595465,1735937438923,-500.0,0.00011894,2]
[347595466,1735937438933,-610.4,0.00011894,2]
[347595467,1735937438942,-500.0,0.00011894,2]
[347595468,1735937438951,-500.0,0.00011894,2]
[347595469,1735937438960,-500.0,0.00011894,2]
[347595470,1735937438969,-500.0,0.00011894,2]
[347595471,1735937438978,-500.0,0.00011894,2]
[347595472,1735937438987,-500.0,0.00011894,2]
[347595473,1735937438997,-500.0,0.00011894,2]
[347595474,1735937439007,-500.0,0.00011894,2]
[347595475,1735937439016,-500.0,0.00011894,2]
[347595476,1735937439025,-500.0,0.00011894,2]
[347595477,1735937439034,-500.0,0.00011894,2]
[347595478,1735937439043,-500.0,0.00011894,2]
[347595479,1735937439051,-500.0,0.00011894,2]
[347595480,1735937439060,-500.0,0.00011894,2]
[347595481,1735937439070,-500.0,0.00011894,2]
[347595482,1735937439079,-500.0,0.00011894,2]
[347595483,1735937439088,-500.0,0.00011894,2]
[347595484,1735937439098,-500.0,0.00011894,2]
[347595485,1735937439107,-500.0,0.00011894,2]
[347595486,1735937439117,-500.0,0.00011894,2]
[347595487,1735937439126,-500.0,0.00011894,2]
[347595488,1735937439136,-500.0,0.00011894,2]
[347595489,1735937439146,-500.0,0.00011894,2]
[347595490,1735937439156,-541.59,0.00011894,2]
[347595491,1735937439166,-520.31,0.00011894,2]
[347595492,1735937439176,-500.0,0.00011894,2]
[347595493,1735937439185,-500.0,0.00011894,2]
[347595494,1735937439195,-500.0,0.00011894,2]
[347595495,1735937439205,-500.0,0.00011894,2]
[347595496,1735937439214,-500.0,0.00011894,2]
[347595497,1735937439224,-605.5,0.00011894,2]
[347595498,1735937439233,-500.0,0.00011894,2]
[347595499,1735937439243,-500.0,0.00011894,2]
[347595500,1735937439252,-500.0,0.00011894,2]
[347595501,1735937439263,-500.0,0.00011894,2]
[347595502,1735937439272,-500.0,0.00011894,2]
[347595503,1735937439282,-500.0,0.00011894,2]
[347595504,1735937439291,-500.0,0.00011894,2]
[347595505,1735937439301,-500.0,0.00011894,2]
[347595506,1735937439310,-500.0,0.00011894,2]
[347595507,1735937439320,-500.0,0.00011894,2]
[347595508,1735937439329,-500.0,0.00011894,2]
[347595509,1735937439339,-500.0,0.00011894,2]
[347595510,1735937439348,-500.0,0.00011894,2]
[347595511,1735937439357,-150.0,0.00011894,2]
[347595512,1735937439366,-500.0,0.00011894,2]
[347595513,1735937439375,-500.0,0.00011894,2]
[347595515,1735937439385,-500.0,0.00011894,2]
[347595516,1735937439394,-500.0,0.00011894,2]
[347595517,1735937439404,-500.0,0.00011894,2]
[347595518,1735937439413,-500.0,0.00011894,2]
[347595519,1735937439422,-500.0,0.00011894,2]
[347595520,1735937439432,-500.0,0.00011894,2]
[347595521,1735937439441,-500.0,0.00011894,2]
[347595522,1735937439451,-500.0,0.00011894,2]
[347595523,1735937439460,-500.0,0.00011894,2]
[347595524,1735937439469,-500.0,0.00011894,2]
[347595525,1735937439479,-584.21542648,0.00011894,2]
[347595526,1735937439488,-500.0,0.00011894,2]
[347595527,1735937439498,-500.0,0.00011894,2]
[347595528,1735937439507,-620.04,0.00011894,2]
[347595529,1735937439517,-500.0,0.00011894,2]
[347595530,1735937439526,-500.0,0.00011894,2]
[347595531,1735937439536,-500.0,0.00011894,2]
[347595532,1735937439546,-500.0,0.00011894,2]
[347595533,1735937439555,-500.0,0.00011894,2]
[347595534,1735937439564,-500.0,0.00011894,2]
[347595535,1735937439573,-500.0,0.00011894,2]
[347595536,1735937439583,-500.0,0.00011894,2]
[347595537,1735937439592,-500.0,0.00011894,2]
[347595538,1735937439602,-500.0,0.00011894,2]
[347595539,1735937439611,-500.0,0.00011894,2]
[347595540,1735937439621,-500.0,0.00011894,2]
[347595541,1735937439630,-500.0,0.00011894,2]
[347595542,1735937439639,-500.0,0.00011894,2]
[347595543,1735937439648,-500.0,0.00011894,2]
[347595544,1735937439657,-1731.49,0.00011894,2]
[347595545,1735937439668,-500.0,0.00011894,2]
[347595546,1735937439683,-500.0,0.00011894,2]
[347595547,1735937439693,-500.0,0.00011894,2]
[347595548,1735937439702,-500.0,0.00011894,2]
[347595549,1735937439712,-527.16,0.00011894,2]
[347595550,1735937439721,-500.0,0.00011894,2]
[347595551,1735937439731,-645.36,0.00011894,2]
[347595552,1735937439740,-500.0,0.00011894,2]
[347595553,1735937439749,-500.0,0.00011894,2]
[347595554,1735937439758,-500.0,0.00011894,2]
[347595555,1735937439767,-500.0,0.00011894,2]
[347595556,1735937439776,-500.0,0.00011894,2]
[347595557,1735937439786,-500.0,0.00011894,2]
[347595558,1735937439795,-500.0,0.00011894,2]
[347595559,1735937439804,-500.0,0.00011894,2]
[347595560,1735937439815,-500.0,0.00011894,2]
[347595561,1735937439826,-500.0,0.00011894,2]
[347595562,1735937439835,-500.0,0.00011894,2]
[347595563,1735937439844,-500.0,0.00011894,2]
[347595564,1735937439853,-500.0,0.00011894,2]
[347595565,1735937439863,-500.0,0.00011894,2]
[347595566,1735937439872,-500.0,0.00011894,2]
[347595567,1735937439881,-500.0,0.00011894,2]
[347595568,1735937439891,-1393.7,0.00011894,2]
[347595569,1735937439900,-500.0,0.00011894,2]
[347595570,1735937439910,-500.0,0.00011894,2]
[347595571,1735937440074,-500.0,0.00011894,2]
[347595572,1735937440084,-500.0,0.00011894,2]
[347595573,1735937440093,-1362.12,0.00011894,2]
[347595574,1735937440103,-500.0,0.00011894,2]
[347595575,1735937440123,-500.0,0.00011894,2]
[347595576,1735937440134,-500.0,0.00011894,2]
[347595577,1735937440143,-500.0,0.00011894,2]
[347595578,1735937440153,-645.35,0.00011894,2]
[347595579,1735937440163,-500.0,0.00011894,2]
[347595580,1735937440173,-500.0,0.00011895,2]
[347595581,1735937440183,-500.0,0.00011895,2]
[347595582,1735937440193,-500.0,0.00011895,2]
[347595583,1735937440203,-550.72045438,0.00011895,2]
[347595584,1735937440213,-588.68748831,0.00011895,2]
[347595585,1735937440224,-500.0,0.00011895,2]
[347595586,1735937440234,-581.11322584,0.00011895,2]
[347595587,1735937440243,-500.0,0.00011895,2]
[347595588,1735937440254,-2276.9552,0.00011899,2]
[347595589,1735937440264,-166.21275412,0.000119,2]
[347595590,1735937440274,-170.11631009,0.000119,2]
[347595591,1735937440283,-271.60751402,0.000119,2]
[347595592,1735937440293,-200.27265384,0.000119,2]
[347595593,1735937440302,-2000.0,0.00011904,2]
[347595594,1735937440312,-1000.0,0.00011906,2]
[347595595,1735937440321,-500.0,0.00011973,2]
[347595596,1735937440331,-500.0,0.00011973,2]
[347595597,1735937440341,-10705.3145095,0.00011995,2]
[347595598,1735937440350,-3151.9946905,0.00011995,2]
[347595599,1735937440360,-500.0,0.00011998,2]
[347595600,1735937440369,-500.0,0.00011998,2]
[347595601,1735937440379,-500.0,0.00011998,2]
[347595602,1735937440388,-500.0,0.00011998,2]
[347595603,1735937440398,-500.0,0.00011998,2]
[347595604,1735937440407,-500.0,0.00011998,2]
[347595605,1735937440417,-500.0,0.00011998,2]
[347595606,1735937440426,-919.64,0.00011998,2]
[347595607,1735937440436,-924.72,0.00011998,2]
[347595608,1735937440445,-657.8,0.00011998,2]
[347595609,1735937440455,-2100.01,0.00011998,2]
[347595610,1735937440464,-1223.31,0.00011998,2]
[347595611,1735937440474,-3174.74,0.00011998,2]
[347595612,1735937440483,-1166.65,0.00011998,2]
[347595613,1735937440493,-1000.0,0.00011999,2]
[347595614,1735937440502,-1000.0,0.00011999,3]
[347595615,1735937440512,-888.42,0.00011999,2]
[347595616,1735937440522,-680.75,0.00011999,2]
[347595617,1735937440531,-2079.63,0.00011999,2]
[347595618,1735937440540,-899.67,0.00011999,2]
[347595619,1735937440550,-2801.44,0.00011999,2]
[347595620,1735937440559,-1198.77,0.00011999,2]
[347595621,1735937440568,-1548.47,0.00011999,2]
[347595622,1735937440578,-750.23,0.00011999,2]
[347595623,1735937440587,-558.34,0.00011999,2]
[347595624,1735937440596,-733.2,0.00011999,2]
[347595625,1735937440606,-1707.2,0.00011999,2]
[347595626,1735937440615,-500.0,0.00011999,2]
[347595627,1735937440624,-1031.57,0.00011999,2]
[347595628,1735937440634,-501.92,0.00011999,2]
[347595629,1735937440643,-500.0,0.00011999,2]
[347595630,1735937440652,-500.0,0.00011999,2]
[347595631,1735937440661,-500.0,0.00011999,2]
[347595632,1735937440671,-500.0,0.00011999,2]
[347595633,1735937440680,-500.0,0.00011999,2]
[347595634,1735937440690,-500.0,0.00011999,2]
[347595635,1735937440699,-500.0,0.00011999,2]
[347595636,1735937440709,-500.0,0.00011999,2]
[347595637,1735937440718,-1014.88,0.00011999,2]
[347595638,1735937440727,-859.28,0.00011999,2]
[347595639,1735937440737,-1421.24,0.00011999,2]
[347595640,1735937440746,-500.0,0.00011999,2]
[347595641,1735937440756,-4539.81,0.00011999,2]
[347595642,1735937440765,-500.0,0.00011999,2]
[347595643,1735937440776,-649.41,0.00011999,2]
[347595644,1735937440785,-2833.5,0.00011999,2]
[347595645,1735937440795,-500.0,0.00011999,2]
[347595646,1735937440804,-500.0,0.00011999,2]
[347595647,1735937440813,-1203.0,0.00012,2]
[347595648,1735937440826,-371230.81875586,0.00012,2]
[347595656,1735937441164,-3112.21826223,0.00012,2]
[347595658,1735937441176,-490439.46624151,0.00012,2]
[347595660,1735937441187,-705.7996043,0.00012,2]
[347595663,1735937441205,-3334.91532517,0.00012,2]
[347595665,1735937441216,-255.97559429,0.00012,2]
[347595668,1735937441227,-4277.70765984,0.00012,2]
[347595670,1735937441239,-1900.0,0.00012,2]
[347595673,1735937441255,-400.78,0.00012,2]
[347595678,1735937441300,-656.77032132,0.00012,2]
[347595681,1735937441311,-593.999997,0.00012,2]
[347595683,1735937441322,-3076.94883219,0.00012,2]
[347595685,1735937441333,-918.204,0.00012,2]
[347595687,1735937441343,-821.24910659,0.00012,2]
[347595689,1735937441355,-36757.39738509,0.00012,2]
[347595691,1735937441365,-616.5,0.00012,2]
[347595727,1735937441704,-500.0,0.00011893,2]
[347595728,1735937441714,-502.14400005,0.00012,2]
[347595731,1735937441725,-521.51666796,0.00012,2]
[347595733,1735937441736,-303.64,0.00012,2]
[347595735,1735937441747,-1304.0305234,0.00012,2]
[347595741,1735937441798,-2097.12750082,0.00012,2]
[347595743,1735937441810,-12982.26600684,0.00012,2]
[347595748,1735937441856,-252.90102083,0.00012,2]
[347595750,1735937441868,-10051.6969912,0.00012,2]
[347595763,1735937441985,-2143.35793935,0.00012,2]
[347595766,1735937441997,-4939.77375769,0.00012,2]
[347595768,1735937442011,-1736.2500075,0.00012,2]
[347595770,1735937442022,-3800.0,0.00012,2]
[347595772,1735937442034,-7855.35575124,0.00012,2]
[347595774,1735937442046,-33306.3600903,0.00012,2]
[347595776,1735937442057,-9439.61,0.00012,2]
[347595780,1735937442082,-294.88750002,0.00011894,2]
[347595782,1735937442094,-205.11249998,0.00011894,2]
[347595784,1735937442103,-500.0,0.00011894,2]
[347595786,1735937442113,-267508.65982244,0.00012,2]
[347595788,1735937442122,-1071942.59050379,0.00012,2]
[347595790,1735937442132,-902620.69440955,0.00012,2]
[347595870,1735937442895,-1.94040581,0.00012,2]
[347595882,1735937442992,-4843.8,0.00012,2]
[347595884,1735937443003,-7256.58771616,0.00012,2]
[347595886,1735937443015,-273737.85912317,0.00012,2]
[347595888,1735937443025,-7206.477,0.00012,2]
[347595890,1735937443034,-3617.84763741,0.00012,2]
[347595892,1735937443046,-2101.54748897,0.00012,2]
[347595895,1735937443059,-388.5620595,0.00012,2]
[347596024,1735937445572,-886.80180723,0.00011893,2]
[347596030,1735937445628,-1700.62819277,0.00011893,2]
[347596031,1735937445637,-500.0,0.00011893,2]
[347596032,1735937445646,-500.0,0.00011894,2]
[347596033,1735937445656,-500.0,0.00011999,2]
[347596034,1735937445666,-2570.47734527,0.00012,2]
[347596035,1735937445676,-9394.0,0.00012,2]
[347596036,1735937445685,-26682.90552776,0.00012,2]
[347596037,1735937445696,-4908.924,0.00012,2]
[347596038,1735937445738,-500.0,0.00012,2]
[347596039,1735937445749,-1269.26404567,0.00012,2]
[347596040,1735937445761,-47400.90642657,0.00012,2]
[347596041,1735937445771,-1045.2764463,0.00012003,2]
[347596042,1735937445780,-3811.134,0.00012027,2]
[347596043,1735937445790,-178.96,0.00012027,2]
[347596044,1735937445799,-271.60751401,0.0001205,2]
[347596045,1735937445809,-277.86,0.0001205,2]
[347596046,1735937445820,-900.0,0.00012088,2]
[347596047,1735937445830,-500.0,0.00012136,2]
[347596048,1735937445842,-790.13,0.00012152,2]
[347596049,1735937445852,-1000.0,0.00012153,2]
[347596050,1735937445863,-612.02,0.00012153,2]
[347596051,1735937445872,-544.83,0.00012153,2]
[347596052,1735937445881,-1416.48,0.00012153,2]
[347596053,1735937445891,-965.32,0.00012153,2]
[347596054,1735937445902,-500.0,0.00012167,2]
[347596055,1735937445911,-437.71,0.00012167,2]
[347596056,1735937445920,-500.0,0.00012167,2]
[347596057,1735937445929,-500.0,0.00012167,2]
[347596058,1735937445938,-500.0,0.00012167,2]
[347596059,1735937445947,-500.0,0.00012167,2]
[347596060,1735937445956,-500.0,0.00012167,2]
[347596061,1735937445965,-611.84,0.00012167,2]
[347596062,1735937445974,-500.0,0.00012167,2]
[347596063,1735937445983,-500.0,0.00012167,2]
[347596064,1735937445993,-500.0,0.00012167,2]
[347596065,1735937446002,-500.0,0.00012167,2]
[347596066,1735937446012,-500.0,0.00012167,2]
[347596067,1735937446021,-500.0,0.00012167,2]
[347596068,1735937446030,-500.0,0.00012167,2]
[347596069,1735937446039,-500.0,0.00012167,2]
[347596070,1735937446049,-500.0,0.00012167,2]
[347596071,1735937446058,-500.0,0.00012167,2]
[347596072,1735937446067,-500.0,0.00012167,2]
[347596073,1735937446076,-500.0,0.00012167,2]
[347596074,1735937446086,-500.0,0.00012167,2]
[347596075,1735937446095,-500.0,0.00012167,2]
[347596076,1735937446104,-500.0,0.00012167,2]
[347596077,1735937446113,-436.7536754,0.00012167,2]
[347596078,1735937446123,-500.0,0.00012167,2]
[347596079,1735937446132,-500.0,0.00012167,2]
[347596080,1735937446141,-500.0,0.00012167,2]
[347596081,1735937446150,-500.0,0.00012167,2]
[347596082,1735937446160,-500.0,0.00012167,2]
[347596083,1735937446169,-500.0,0.00012167,2]
[347596084,1735937446178,-500.0,0.00012167,2]
[347596085,1735937446187,-663.84,0.00012167,2]
[347596086,1735937446196,-500.0,0.00012167,2]
[347596087,1735937446206,-610.45,0.00012167,2]
[347596088,1735937446215,-500.0,0.00012167,2]
[347596089,1735937446224,-274.6,0.00012167,2]
[347596090,1735937446233,-500.0,0.00012167,2]
[347596091,1735937446241,-500.0,0.00012167,2]
[347596092,1735937446250,-500.0,0.00012167,2]
[347596093,1735937446259,-500.0,0.00012167,2]
[347596094,1735937446269,-500.0,0.00012167,2]
[347596095,1735937446278,-500.0,0.00012167,2]
[347596096,1735937446287,-546.48,0.00012167,2]
[347596097,1735937446296,-500.0,0.00012167,2]
[347596098,1735937446305,-500.0,0.00012167,2]
[347596099,1735937446314,-500.0,0.00012167,2]
[347596100,1735937446323,-500.0,0.00012167,2]
[347596101,1735937446332,-312.97,0.00012167,2]
[347596102,1735937446342,-500.0,0.00012167,2]
[347596103,1735937446350,-500.0,0.00012167,2]
[347596104,1735937446359,-500.0,0.00012167,2]
[347596105,1735937446368,-500.0,0.00012167,2]
[347596106,1735937446377,-500.0,0.00012167,2]
[347596107,1735937446387,-301.73,0.00012167,2]
[347596108,1735937446395,-500.0,0.00012167,2]
[347596109,1735937446404,-517.06,0.00012167,2]
[347596110,1735937446413,-500.0,0.00012167,2]
[347596111,1735937446422,-500.0,0.00012167,2]
[347596112,1735937446431,-500.0,0.00012167,2]
[347596113,1735937446440,-500.0,0.00012167,2]
[347596114,1735937446449,-468.75,0.00012167,2]
[347596115,1735937446459,-500.0,0.00012167,2]
[347596116,1735937446467,-500.0,0.00012167,2]
[347596117,1735937446477,-500.0,0.00012167,2]
[347596118,1735937446486,-500.0,0.00012167,2]
[347596119,1735937446495,-500.0,0.00012167,2]
[347596120,1735937446503,-500.0,0.00012167,2]
[347596121,1735937446513,-498.26,0.00012167,2]
[347596122,1735937446522,-500.0,0.00012167,2]
[347596123,1735937446531,-455.57018187,0.00012167,2]
[347596124,1735937446540,-500.0,0.00012167,2]
[347596125,1735937446548,-500.0,0.00012167,2]
[347596126,1735937446557,-763.04,0.00012167,2]
[347596127,1735937446566,-288.803247,0.00012167,2]
[347596128,1735937446575,-500.0,0.00012167,2]
[347596129,1735937446584,-350.78,0.00012167,2]
[347596130,1735937446593,-500.0,0.00012167,2]
[347596131,1735937446602,-500.0,0.00012167,2]
[347596132,1735937446611,-342.83,0.00012167,2]
[347596133,1735937446621,-500.0,0.00012167,2]
[347596134,1735937446633,-500.0,0.00012167,2]
[347596135,1735937446644,-500.0,0.00012167,2]
[347596136,1735937446653,-500.0,0.00012167,2]
[347596137,1735937446662,-500.0,0.00012167,2]
[347596138,1735937446671,-2090.12,0.00012167,2]
[347596139,1735937446680,-200.729056,0.00012167,2]
[347596140,1735937446689,-500.0,0.00012167,2]
[347596141,1735937446698,-500.0,0.00012167,2]